bitfinex/quotes_ETHUSD_20241024
["timestamp","ask_amount","ask_price","bid_price","bid_amount"]
[1729765697536,4.81020988,2529.6,2529.1,4.74717]
[1729765697733,4.81020988,2529.6,2529.2,0.14172959]
[1729765697960,3.95339,2529.5,2529.2,0.14172959]
[1729765698673,0.7581,2529.6,2529.2,0.14172959]
[1729765698884,4.7113,2529.6,2529.2,0.14172959]
[1729765699093,8.66459,2529.6,2529.2,0.14172959]
[1729765699267,0.09883581,2529.5,2529.2,0.14172959]
[1729765699888,0.09883571,2529.5,2529.2,0.14172959]
[1729765700565,0.7581,2529.6,2529.2,4.09553959]
[1729765702291,4.05190581,2529.7,2529.3,3.95366]
[1729765702489,0.09883581,2529.7,2529.3,3.95358]
[1729765702675,0.09883581,2529.7,2529.4,0.1413779]
[1729765702879,4.05189581,2529.7,2529.4,0.1413779]
[1729765703495,3.95323,2529.6,2529.4,0.1413779]
[1729765703656,4.05206343,2529.6,2529.4,0.1413779]
[1729765703856,4.05206343,2529.6,2529.1,7.90775]
[1729765704086,0.09883343,2529.6,2529.5,0.14126709]
[1729765704290,0.09883343,2529.6,2529.2,3.95379]
[1729765704588,0.46823549,2529.6,2529.2,3.95379]
[1729765704777,0.09883343,2529.6,2529.3,0.14145623]
[1729765705093,4.05204343,2529.6,2529.1,3.95385]
[1729765705291,4.05204343,2529.6,2529.4,0.14136707]
[1729765705479,4.05204343,2529.6,2529.1,7.90773]
[1729765705680,0.09883343,2529.6,2529.5,0.14127792]
[1729765705879,4.75751,2530.3,2529.8,3.95286]
[1729765706083,0.09881656,2530.2,2529.8,3.95286]
[1729765706297,0.09881656,2530.2,2529.9,0.14092681]
[1729765706887,4.05109656,2530.2,2529.9,0.14092681]
[1729765707417,4.05109656,2530.2,2530.0,0.14078895]
[1729765707616,4.05109656,2530.2,2529.7,4.0285]
[1729765707912,4.05109656,2530.2,2530.1,0.14069984]
[1729765708083,4.42035987,2530.2,2529.7,4.0285]
[1729765708284,4.05109656,2530.2,2530.1,0.14069984]
[1729765708508,4.42032952,2530.2,2529.7,4.0285]
[1729765708717,4.05109656,2530.2,2529.8,3.95287]
[1729765708923,4.05109656,2530.2,2529.8,4.09383719]
[1729765710524,4.05109656,2530.2,2529.8,0.14096719]
[1729765710707,0.09881656,2530.2,2529.8,0.14096719]
[1729765711018,4.85625652,2530.3,2529.9,0.14087806]
[1729765711317,0.36917039,2530.2,2529.9,0.14087806]
[1729765711485,4.85625652,2530.3,2529.9,0.14087806]
[1729765711685,0.36914234,2530.2,2529.9,0.14087806]
[1729765711881,3.95236,2530.2,2529.9,0.14087806]
[1729765712095,3.95249,2530.1,2529.9,0.14087806]
[1729765712314,3.95249,2530.1,2529.7,0.07548]
[1729765712558,3.95249,2530.1,2530.0,0.14037199]
[1729765712709,3.95233,2530.2,2529.7,4.10743256]
[1729765713327,3.95233,2530.2,2529.8,0.14055023]
[1729765713530,3.95272,2529.9,2529.8,0.14055023]
[1729765713860,3.95288,2529.8,2529.7,0.07548]
[1729765713983,4.05170861,2529.8,2529.7,0.07548]
[1729765714420,3.95288,2529.8,2529.7,0.07548]
[1729765714718,4.86855851,2529.9,2529.7,0.07548]
[1729765714918,3.95288,2529.8,2529.7,0.07548]
[1729765715779,4.0517086,2529.8,2529.7,0.07548]
[1729765716018,3.95288,2529.8,2529.7,0.07548]
[1729765716384,4.0515682,2529.9,2529.7,0.07548]
[1729765716911,3.95242,2530.1,2529.7,0.07548]
[1729765717220,4.05123413,2530.1,2529.7,0.07548]
[1729765717519,3.95283,2529.9,2529.7,0.07548]
[1729765717935,7.90564,2529.9,2529.7,0.07548]
[1729765718138,3.95281,2529.9,2529.7,0.07548]
[1729765718629,0.09882312,2530.0,2529.7,0.07548]
[1729765719437,3.95272,2529.9,2529.7,0.07548]
[1729765719598,3.95288,2529.8,2529.7,0.07548]
[1729765720215,3.95272,2529.9,2529.7,0.07548]
[1729765720811,3.95288,2529.8,2529.7,0.07548]
[1729765721137,4.05170313,2529.8,2529.7,0.07548]
[1729765721707,3.95288,2529.8,2529.7,0.07548]
[1729765722508,3.95282,2529.9,2529.7,0.07548]
[1729765723130,3.95288,2529.8,2529.7,0.07548]
[1729765723639,0.8321,2529.8,2529.7,0.07548]
[1729765723845,3.95273,2529.9,2529.7,0.07548]
[1729765724140,4.0515551,2529.9,2529.7,0.07548]
[1729765724346,3.95273,2529.9,2529.8,0.14088052]
[1729765724701,3.95273,2529.9,2529.7,0.07548]
[1729765724931,3.95273,2529.9,2529.8,0.14088052]
[1729765725437,3.95273,2529.9,2529.8,0.14086428]
[1729765725658,3.95273,2529.9,2529.7,0.07548]
[1729765725937,3.95273,2529.9,2529.8,0.14086428]
[1729765726437,3.95273,2529.9,2529.7,0.07548]
[1729765726954,3.95273,2529.9,2529.8,0.14086428]
[1729765727243,3.95218,2530.3,2529.8,3.95286]
[1729765727608,3.95194,2530.4,2530.0,0.7809]
[1729765727910,3.95194,2530.4,2530.1,0.14058068]
[1729765728138,0.92350559,2530.5,2530.1,0.14058068]
[1729765728451,3.95152,2530.7,2530.2,3.95212]
[1729765728804,0.09878728,2530.7,2530.3,0.14035917]
[1729765729032,3.95164,2530.6,2530.3,0.14035917]
[1729765729255,3.03246572,2530.5,2530.0,0.7809]
[1729765729456,3.95201,2530.4,2530.1,0.14053736]
[1729765729744,3.95211,2530.3,2529.8,7.73364]
[1729765729905,4.05091761,2530.3,2530.2,0.14044826]
[1729765730110,3.95231,2530.2,2529.8,0.7809]
[1729765730549,3.95211,2530.3,2529.8,4.73377]
[1729765730842,0.09880773,2530.2,2529.8,4.73377]
[1729765731052,3.95211,2530.3,2529.8,4.73377]
[1729765731207,3.95211,2530.3,2529.8,4.73371]
[1729765731412,3.95211,2530.3,2529.9,0.07904611]
[1729765731745,3.95163,2530.6,2530.2,0.7838]
[1729765731944,3.95148,2530.7,2530.2,4.81506645]
[1729765732403,3.95148,2530.7,2530.2,0.86283645]
[1729765732813,7.90304,2530.7,2530.2,0.86283645]
[1729765733119,3.95133,2530.8,2530.3,3.95201]
[1729765733325,0.09878972,2530.8,2530.2,0.7838]
[1729765733555,0.09878972,2530.8,2530.3,3.95203]
[1729765733556,3.95142,2530.8,2530.3,3.95203]
[1729765733843,3.95119,2530.9,2530.4,3.95184]
[1729765734049,3.95119,2530.9,2530.5,0.7929]
[1729765734448,7.90245,2530.9,2530.5,0.7929]
[1729765734619,3.95134,2530.8,2530.5,0.7929]
[1729765735659,7.90279,2530.8,2530.5,0.7929]
[1729765736019,3.95134,2530.8,2530.5,0.7929]
[1729765736415,3.95101,2531.0,2530.5,4.82359623]
[1729765736749,3.95108,2531.0,2530.6,0.07902591]
[1729765736955,0.12422,2531.1,2530.7,0.8011]
[1729765736956,8.02603,2531.1,2530.7,0.8011]
[1729765737113,8.02604,2531.1,2530.7,0.8011]
[1729765737316,4.0751,2531.1,2530.7,0.8011]
[1729765738964,0.12422,2531.1,2530.7,0.8011]
[1729765739252,3.95131,2530.8,2530.7,0.8011]
[1729765739462,3.95117,2530.9,2530.7,0.8011]
[1729765739829,3.9511,2531.0,2530.7,0.8011]
[1729765740963,3.95122,2530.9,2530.7,0.8011]
[1729765742263,3.95159,2530.7,2530.3,0.7817]
[1729765742469,3.95187,2530.5,2530.3,0.7817]
[1729765743067,3.95187,2530.5,2530.0,8.02246]
[1729765743068,3.95194,2530.4,2530.1,0.7758]
[1729765743767,7.90367,2530.5,2530.1,0.7758]
[1729765744061,3.95179,2530.5,2530.1,0.7758]
[1729765744632,7.90366,2530.5,2530.1,0.7758]
[1729765745274,3.95179,2530.5,2530.1,0.7758]
[1729765745467,3.95206,2530.4,2530.1,0.7758]
[1729765746632,7.90319,2530.7,2530.1,4.72817]
[1729765747070,3.95191,2530.5,2530.1,0.7758]
[1729765747274,3.9517,2530.6,2530.2,0.07903522]
[1729765747438,3.95128,2530.9,2530.2,0.07903522]
[1729765747782,3.95152,2530.7,2530.3,3.0]
[1729765748068,3.95152,2530.7,2530.3,3.95208]
[1729765748242,3.95152,2530.7,2530.4,3.0]
[1729765748570,3.95152,2530.7,2530.6,0.075453]
[1729765749534,3.95123,2530.9,2530.6,0.075453]
[1729765750081,0.12422,2531.1,2530.7,0.7866]
[1729765750369,0.12422,2531.1,2530.8,3.95131]
[1729765750941,0.12422,2531.1,2530.8,3.95123]
[1729765751146,0.12422,2531.1,2530.8,3.95131]
[1729765751367,0.12422,2531.1,2530.9,0.7673]
[1729765752085,0.12422,2531.1,2530.9,4.71844]
[1729765752282,0.12422,2531.1,2531.0,3.951]
[1729765752678,0.12422,2531.1,2530.9,4.71837]
[1729765754184,0.12422,2531.1,2531.0,0.13857194]
[1729765755307,4.07507,2531.1,2531.0,0.13857194]
[1729765755852,4.07507,2531.1,2530.7,0.801]
[1729765756101,4.07507,2531.1,2531.0,0.13857194]
[1729765756268,0.12422,2531.1,2530.7,4.75247]
[1729765756463,0.12422,2531.1,2531.0,0.13857194]
[1729765757091,0.12422,2531.1,2530.7,4.75247]
[1729765757402,0.12422,2531.1,2530.8,0.13861477]
[1729765757693,0.12422,2531.1,2530.7,4.75247]
[1729765757901,0.12422,2531.1,2530.8,0.13861477]
[1729765758115,0.12422,2531.1,2530.7,4.75247]
[1729765758396,0.12422,2531.1,2530.7,8.7038]
[1729765758598,0.12422,2531.1,2530.8,0.13861477]
[1729765758962,0.12422,2531.1,2530.7,4.75233]
[1729765759182,0.12422,2531.1,2530.9,0.13852571]
[1729765759384,0.12422,2531.1,2530.7,4.75247]
[1729765759584,0.12422,2531.1,2531.0,0.13843667]
[1729765759830,0.12422,2531.1,2530.7,4.75247]
[1729765760293,0.12422,2531.1,2530.8,0.13861477]
[1729765760493,0.12422,2531.1,2530.7,4.75247]
[1729765760723,0.12422,2531.1,2530.8,0.13861477]
[1729765761029,0.95462,2531.1,2530.6,0.075453]
[1729765761198,4.0498795,2531.0,2530.6,0.075453]
[1729765761404,7.90219,2531.0,2530.7,0.1386876]
[1729765761601,3.95109,2531.0,2530.7,0.1386876]
[1729765763115,0.12422,2531.1,2530.7,0.1386876]
[1729765763116,0.12422,2531.1,2530.9,0.7642]
[1729765763316,0.12422,2531.1,2531.0,4.03001507]
[1729765763516,0.12422,2531.1,2531.0,4.16843551]
[1729765763695,0.12422,2531.1,2531.0,0.13842044]
[1729765765900,0.12422,2531.1,2530.7,4.83811767]
[1729765766106,0.12422,2531.1,2530.8,0.13859854]
[1729765766634,4.07507,2531.1,2530.7,0.8077]
[1729765766833,4.04978374,2531.0,2530.9,0.13850948]
[1729765767009,3.95116,2530.9,2530.8,0.13859854]
[1729765767210,3.95116,2530.9,2530.5,0.8033]
[1729765768121,3.95163,2530.6,2530.1,0.7913]
[1729765768321,3.95163,2530.6,2530.1,4.82265776]
[1729765768526,3.95163,2530.6,2530.2,3.95225]
[1729765769098,3.95163,2530.6,2530.1,0.87033776]
[1729765769099,3.95163,2530.6,2530.3,0.1390439]
[1729765769304,3.95163,2530.6,2530.1,4.82273776]
[1729765769606,3.876368,2530.5,2530.2,0.13913299]
[1729765769806,7.90335,2530.6,2530.2,0.13913299]
[1729765770227,3.95182,2530.5,2530.2,0.13913299]
[1729765770535,3.95163,2530.6,2530.2,0.13913299]
[1729765770838,7.90334,2530.6,2530.2,0.13913299]
[1729765771226,3.95179,2530.5,2530.2,0.13913299]
[1729765774171,3.95195,2530.4,2530.2,0.13913299]
[1729765774537,7.9034,2530.6,2530.2,0.13913299]
[1729765774732,3.95192,2530.5,2530.2,0.13913299]
[1729765776070,3.95194,2530.4,2530.2,0.13913299]
[1729765778337,3.95163,2530.6,2530.2,0.13913299]
[1729765778537,4.05043128,2530.6,2530.2,0.13913299]
[1729765778973,3.95178,2530.5,2530.2,0.13913299]
[1729765779945,4.75779,2530.7,2530.3,3.95208]
[1729765780263,4.75779,2530.7,2530.4,0.13955544]
[1729765780264,3.9517,2530.6,2530.4,0.13955544]
[1729765780472,4.05049819,2530.6,2530.1,10.9047]
[1729765780641,4.05049819,2530.6,2530.2,0.13973362]
[1729765780843,3.95181,2530.5,2530.2,0.13973362]
[1729765781050,4.05060937,2530.5,2530.2,0.13973362]
[1729765781355,4.703,2530.3,2530.2,0.13973362]
[1729765781551,4.80180939,2530.3,2530.2,0.13973362]
[1729765781760,3.95233,2530.2,2530.0,4.07]
[1729765781949,4.05113993,2530.2,2530.0,4.07]
[1729765784177,0.09880993,2530.2,2530.1,0.13982272]
[1729765784345,4.05105993,2530.2,2530.1,0.13982272]
[1729765784753,4.92646592,2530.2,2530.1,0.13982272]
[1729765786979,5.29588657,2530.2,2530.1,0.13982272]
[1729765787943,4.92646592,2530.2,2530.1,0.13982272]
[1729765788689,4.92646592,2530.2,2530.1,29.13982272]
[1729765788690,5.29580853,2530.2,2530.1,29.13982272]
[1729765788870,4.05105993,2530.2,2530.1,29.13982272]
[1729765790283,5.36111866,2530.2,2530.1,29.13982272]
[1729765790447,5.7303322,2530.2,2530.1,29.13982272]
[1729765790951,5.73032905,2530.2,2530.1,29.13982272]
[1729765791157,5.36112425,2530.2,2530.1,29.13982272]
[1729765791979,6.19172425,2530.2,2530.1,29.13982272]
[1729765792867,3.95225,2530.2,2530.1,29.13982272]
[1729765793053,5.3611215,2530.2,2530.1,29.13982272]
[1729765794287,4.05106277,2530.2,2530.1,29.13982272]
[1729765795240,5.3611215,2530.2,2530.1,29.13982272]
[1729765800370,4.05106277,2530.2,2530.1,29.13982272]
[1729765800570,3.95225,2530.2,2530.1,29.13982272]
[1729765800889,3.95225,2530.2,2530.1,29.92702272]
[1729765801388,5.26230873,2530.2,2530.1,29.13982272]
[1729765801592,6.12691976,2530.2,2530.1,29.13982272]
[1729765804188,3.952,2530.4,2530.1,29.91362272]
[1729765804431,3.9519,2530.5,2530.1,29.91362272]
[1729765804602,5.26213873,2530.4,2530.1,29.91362272]
[1729765805004,1.31005873,2530.3,2530.1,29.91362272]
[1729765805203,9.21420873,2530.4,2530.1,29.91362272]
[1729765805505,5.26217873,2530.3,2530.1,29.91362272]
[1729765806034,5.26200873,2530.4,2530.1,29.91362272]
[1729765807446,3.95195,2530.4,2530.1,29.91362272]
[1729765808039,5.26200873,2530.4,2530.1,29.91362272]
[1729765808826,5.26230873,2530.2,2530.1,29.13982272]
[1729765809632,5.36111979,2530.2,2530.1,29.13982272]
[1729765809810,5.26230873,2530.2,2530.1,29.13982272]
[1729765810010,5.36111979,2530.2,2530.1,29.13982272]
[1729765811131,5.63186174,2530.2,2530.1,29.13982272]
[1729765811294,5.36112115,2530.2,2530.1,29.13982272]
[1729765811500,5.26230873,2530.2,2530.1,29.13982272]
[1729765811738,3.95225,2530.2,2530.1,29.13982272]
[1729765812122,5.73078045,2530.2,2530.1,29.13982272]
[1729765813838,7.72797737,2530.2,2530.1,29.13982272]
[1729765814008,8.31965384,2530.2,2530.1,29.13982272]
[1729765814204,8.22084142,2530.2,2530.1,29.13982272]
[1729765814433,7.25950565,2530.2,2530.1,29.13982272]
[1729765814621,8.32000513,2530.2,2530.1,29.13982272]
[1729765814821,7.25950565,2530.2,2530.1,29.13982272]
[1729765815006,8.31999918,2530.2,2530.1,29.13982272]
[1729765815203,8.22117706,2530.2,2530.1,29.13982272]
[1729765815624,5.72982141,2530.2,2530.1,29.13982272]
[1729765815811,7.13869795,2530.2,2530.1,29.13982272]
[1729765816923,7.14869795,2530.2,2530.1,29.13982272]
[1729765817509,7.76515398,2530.2,2530.1,29.13982272]
[1729765817711,10.76515398,2530.2,2530.1,29.13982272]
[1729765817937,9.08820873,2530.2,2530.1,29.13982272]
[1729765818244,12.1021248,2530.2,2530.1,29.13982272]
[1729765818551,12.72069535,2530.2,2530.1,29.14005009]
[1729765818851,12.10433741,2530.2,2530.1,29.14005009]
[1729765819382,12.72069535,2530.2,2530.1,18.51242354]
[1729765821369,12.71998333,2530.2,2530.1,18.51242354]
[1729765821734,14.03004206,2530.2,2530.1,18.51242354]
[1729765821940,13.41396225,2530.2,2530.1,10.60758354]
[1729765822247,3.95381,2529.2,2529.1,0.7688]
[1729765822443,5.26386873,2529.2,2529.1,0.7688]
[1729765822673,1.31005873,2529.3,2529.1,0.7688]
[1729765824542,1.40890959,2529.4,2529.1,0.7688]
[1729765825188,0.09885086,2529.4,2529.1,0.7688]
[1729765825349,1.31005873,2529.4,2529.1,0.7688]
[1729765827587,0.09884751,2529.3,2529.1,0.7688]
[1729765827759,1.40890624,2529.3,2529.1,0.7688]
[1729765828275,0.09884751,2529.3,2529.1,0.7688]
[1729765829303,0.09884751,2529.3,2528.7,5.26456873]
[1729765829304,3.95381,2529.2,2528.7,1.3547]
[1729765829499,1.40891289,2529.1,2528.7,1.3547]
[1729765829988,1.40891289,2529.1,2528.8,0.13751394]
[1729765830794,5.36299289,2529.1,2528.8,0.13751394]
[1729765831099,1.31005873,2529.0,2528.8,0.13751394]
[1729765831399,0.09885416,2529.1,2528.8,0.13751394]
[1729765832299,3.95316,2529.7,2528.8,4.17097158]
[1729765832468,1.31005873,2529.4,2528.9,4.73256]
[1729765832669,0.09884747,2529.3,2529.0,0.13733556]
[1729765833005,1.4089062,2529.3,2529.0,0.13733556]
[1729765833807,1.31005873,2529.3,2529.0,0.13733556]
[1729765834007,1.31005873,2529.3,2529.0,4.09144556]
[1729765834509,1.31005873,2529.4,2529.0,4.09144556]
[1729765834807,1.31005873,2529.4,2529.1,0.7784]
[1729765835113,0.09884747,2529.3,2529.2,0.13704738]
[1729765836291,1.31005873,2529.4,2529.2,0.13704738]
[1729765836512,0.09884733,2529.3,2529.2,0.13704738]
[1729765836878,1.31005873,2529.4,2529.2,0.13704738]
[1729765837201,5.36256613,2529.3,2529.2,0.13704738]
[1729765838420,1.40890613,2529.3,2529.2,0.13704738]
[1729765838629,1.31005873,2529.3,2529.2,0.13704738]
[1729765838915,1.31005873,2529.4,2529.2,0.13704738]
[1729765839296,0.09884743,2529.6,2529.4,3.95349]
[1729765839619,3.95283,2529.9,2529.3,0.7608]
[1729765839620,5.36161516,2529.9,2529.5,0.89757991]
[1729765839786,1.31005873,2529.8,2529.5,0.89757991]
[1729765841423,0.09883068,2529.7,2529.5,0.89757991]
[1729765841719,1.40888941,2529.7,2529.5,0.89757991]
[1729765841888,1.31005873,2529.7,2529.5,0.89757991]
[1729765842722,1.40888941,2529.8,2529.5,0.89757991]
[1729765843298,1.31005873,2529.7,2529.5,0.89757991]
[1729765845836,1.40888978,2529.6,2529.5,0.13677991]
[1729765846133,5.36207978,2529.6,2529.0,4.76573]
[1729765846306,1.31005873,2529.4,2529.0,0.8117]
[1729765846512,0.09884862,2529.4,2529.0,4.76581]
[1729765846711,0.09884852,2529.6,2529.2,3.95374]
[1729765847031,1.40890725,2529.6,2529.3,0.7929]
[1729765847242,1.31005873,2529.5,2529.3,0.7929]
[1729765848901,1.31005873,2529.5,2529.1,3.9539]
[1729765849106,1.31005873,2529.3,2529.0,0.7929]
[1729765849404,1.40889915,2529.4,2529.0,4.74699]
[1729765850132,1.31005873,2529.3,2529.0,0.7929]
[1729765851803,0.09885135,2529.2,2529.0,0.7929]
[1729765852002,4.05235135,2529.4,2529.0,0.7929]
[1729765852317,5.36241008,2529.4,2529.0,0.7929]
[1729765852840,1.31005873,2529.3,2529.0,0.7929]
[1729765852996,5.36241008,2529.4,2529.0,0.7929]
[1729765857148,0.36979744,2529.3,2529.0,4.74702]
[1729765857448,4.7393,2529.8,2529.0,0.7929]
[1729765857609,3.02,2530.2,2529.5,3.95328]
[1729765857610,0.36976808,2529.7,2529.5,3.95328]
[1729765857801,1.40888973,2529.9,2529.5,3.95328]
[1729765858126,1.6797959,2529.8,2529.5,3.95328]
[1729765858314,0.36973717,2529.7,2529.5,3.95328]
[1729765858527,0.098831,2530.1,2529.6,0.8109]
[1729765858839,1.4088764,2530.3,2530.1,0.8109]
[1729765859038,1.67981587,2530.2,2530.1,0.8109]
[1729765859352,0.36975714,2530.2,2530.1,4.89909316]
[1729765859842,1.40887088,2530.4,2530.1,4.89909316]
[1729765860039,1.6798095,2530.3,2530.1,4.89909316]
[1729765860224,0.36975077,2530.2,2530.1,0.94668316]
[1729765860422,0.36976973,2530.2,2530.1,0.94668316]
[1729765861441,1.31005873,2530.4,2530.1,0.94668316]
[1729765861753,0.36969547,2530.3,2530.1,0.94668316]
[1729765861957,1.40886787,2530.5,2530.1,4.89893316]
[1729765862122,1.67974894,2530.4,2530.1,0.94668316]
[1729765862328,0.46849935,2530.3,2530.1,0.94668316]
[1729765862539,1.31005873,2530.3,2530.1,0.94668316]
[1729765863657,0.09880915,2530.5,2530.1,0.94668316]
[1729765863860,1.31005873,2530.7,2530.3,3.95201]
[1729765864019,0.36948791,2530.6,2530.4,0.8118]
[1729765864219,1.92463054,2530.7,2530.4,4.89889486]
[1729765864459,1.31005873,2530.6,2530.4,4.89889486]
[1729765864835,1.92463054,2530.7,2530.4,4.89889486]
[1729765865029,1.31005873,2530.6,2530.4,4.89889486]
[1729765865253,0.61457181,2530.7,2530.4,8.85076486]
[1729765865459,1.40885809,2530.8,2530.4,4.89884486]
[1729765866259,1.31005873,2530.7,2530.4,4.89884486]
[1729765866462,1.31005873,2530.7,2530.4,8.85069486]
[1729765866959,1.43427873,2531.1,2530.7,3.95147]
[1729765867131,1.40883819,2531.0,2530.7,3.95147]
[1729765867338,1.40883819,2531.0,2530.8,0.13400124]
[1729765867547,1.40883819,2531.0,2530.7,3.95147]
[1729765867748,1.31005873,2530.9,2530.7,3.95147]
[1729765868449,0.22299947,2531.1,2530.7,7.90285]
[1729765868763,3.70320931,2531.3,2530.8,3.95131]
[1729765868971,0.79284276,2531.2,2530.7,3.95138]
[1729765869133,0.02747283,2531.2,2530.8,3.95118]
[1729765869325,0.02747283,2531.2,2530.9,3.95106]
[1729765869862,0.02747283,2531.2,2530.8,7.9024]
[1729765870439,0.02747283,2531.2,2530.8,3.95118]
[1729765870637,0.02747283,2531.2,2530.9,0.8209]
[1729765871567,1.18967004,2531.2,2530.6,4.7475]
[1729765871898,0.8167,2531.1,2530.6,4.74762]
[1729765872071,0.02747283,2531.0,2530.7,3.95146]
[1729765872245,0.84417283,2531.1,2530.8,3.9513]
[1729765872444,0.02747283,2531.1,2530.8,3.9513]
[1729765873363,3.97816283,2531.2,2530.9,0.13378777]
[1729765873570,4.50214172,2531.1,2530.9,0.13378777]
[1729765873741,4.50214172,2531.1,2530.6,4.74751]
[1729765873742,0.02747283,2531.0,2530.6,4.74751]
[1729765873931,3.97848283,2531.0,2530.7,0.13400915]
[1729765874725,0.02747283,2531.0,2530.7,0.13400915]
[1729765875247,3.97855283,2531.0,2530.7,0.13400915]
[1729765875458,3.95131,2530.8,2530.7,0.13400915]
[1729765875656,0.02747283,2530.8,2530.7,0.13400915]
[1729765875859,0.02747283,2530.8,2530.5,3.95176]
[1729765876055,0.02747283,2530.8,2530.7,0.13401997]
[1729765876274,0.02747283,2530.8,2530.6,0.13410904]
[1729765876482,0.02747283,2530.8,2530.7,0.13401997]
[1729765876696,1.19347904,2530.8,2530.7,0.13401997]
[1729765876841,1.19347904,2530.8,2530.4,7.90371]
[1729765877184,0.02747283,2530.8,2530.4,7.90371]
[1729765877344,0.02747283,2530.8,2530.5,0.13422516]
[1729765879464,0.02747283,2530.8,2530.5,4.08600516]
[1729765879857,7.56995322,2532.5,2530.7,4.70897]
[1729765879858,4.7524,2531.2,2530.7,4.70897]
[1729765880188,4.7524,2531.2,2530.8,0.13388224]
[1729765880189,1.19026176,2531.1,2530.8,0.13388224]
[1729765880479,0.02747283,2531.2,2531.0,3.951]
[1729765880701,0.02747283,2531.4,2531.1,4.7083]
[1729765880846,0.02747283,2531.4,2531.1,4.8419151]
[1729765881271,0.8017,2531.6,2531.1,4.8419151]
[1729765881477,0.02747283,2531.6,2531.2,3.55]
[1729765881799,0.8017,2532.4,2531.7,3.9499]
[1729765881800,3.94928,2532.2,2531.7,3.9499]
[1729765882083,4.37444811,2532.1,2531.6,3.95005]
[1729765882288,4.37444811,2532.1,2531.8,0.13291089]
[1729765882475,3.94951,2532.0,2531.7,0.13299988]
[1729765882781,3.9496,2531.9,2531.8,0.13291089]
[1729765882995,10.63290931,2531.9,2531.8,0.13291089]
[1729765883286,0.8071,2531.2,2531.1,4.07]
[1729765883585,0.8071,2531.2,2531.1,4.20320407]
[1729765884248,7.68269931,2531.2,2531.1,0.13320407]
[1729765884587,3.95109,2531.0,2530.4,3.95182]
[1729765884761,3.97863283,2530.9,2530.4,3.95182]
[1729765885081,3.97863283,2530.9,2530.5,0.13387899]
[1729765886180,3.97863283,2530.9,2530.6,0.13388185]
[1729765886849,7.92992283,2530.9,2530.3,4.74611]
[1729765887090,0.02747283,2530.8,2530.7,0.13379279]
[1729765887244,0.02747283,2530.8,2530.4,3.95186]
[1729765887443,3.95039,2531.4,2530.9,3.95109]
[1729765887647,3.97786283,2531.4,2530.8,3.95131]
[1729765887874,3.97786283,2531.4,2531.0,0.1335797]
[1729765888083,0.02747283,2531.4,2531.0,4.0845397]
[1729765888292,3.97796283,2531.4,2530.9,3.95108]
[1729765888494,3.95054,2531.3,2531.1,0.13349066]
[1729765888687,0.02747283,2531.2,2531.0,0.13349856]
[1729765888876,0.02747283,2531.2,2530.9,3.95108]
[1729765889370,3.95094,2531.1,2531.0,0.13349856]
[1729765889682,3.97841283,2531.1,2530.7,0.7569]
[1729765890155,3.97841283,2531.1,2530.8,0.13360635]
[1729765890486,3.97841283,2531.1,2530.5,0.7569]
[1729765890487,0.7764,2531.0,2530.5,0.7569]
[1729765890660,3.97863283,2530.9,2530.4,3.95186]
[1729765891057,0.80387283,2531.0,2530.6,3.95159]
[1729765891247,3.97835283,2531.1,2530.7,3.95146]
[1729765891673,3.95023,2531.5,2531.0,3.95092]
[1729765891875,0.783,2531.6,2531.0,3.95092]
[1729765891876,0.02747283,2531.6,2531.0,0.798]
[1729765892111,0.01,2532.4,2531.0,0.798]
[1729765892112,0.02747283,2531.7,2531.4,0.7995]
[1729765892392,3.94988,2531.8,2531.4,0.7995]
[1729765892595,0.02747283,2531.7,2531.4,0.7995]
[1729765892756,0.02747283,2531.7,2531.4,4.74985]
[1729765892952,0.02747283,2531.7,2531.4,0.7995]
[1729765893170,0.02747283,2531.7,2531.4,4.74984]
[1729765893369,7.37,2532.7,2531.7,0.82]
[1729765893370,0.02747283,2532.0,2531.7,0.82]
[1729765893568,3.97684283,2532.1,2531.6,3.95007]
[1729765894373,3.97684283,2532.1,2531.6,7.90003]
[1729765894795,0.02747283,2532.1,2531.7,3.9499]
[1729765895353,3.94892,2532.4,2532.0,0.7902]
[1729765895557,0.02747283,2532.5,2532.0,0.7902]
[1729765895795,3.94894,2532.4,2532.0,0.7902]
[1729765896004,0.02747283,2532.3,2532.0,0.7902]
[1729765896156,3.97645283,2532.3,2532.0,0.7902]
[1729765896356,3.97645283,2532.3,2531.9,3.94958]
[1729765897094,8.08678931,2532.5,2531.9,3.94958]
[1729765897095,0.02747283,2532.4,2531.9,3.94947]
[1729765897269,0.02747283,2532.4,2532.0,3.9493]
[1729765897772,3.97638283,2532.4,2531.9,3.94947]
[1729765897972,0.02747283,2532.4,2531.9,3.94947]
[1729765898397,0.02747283,2532.4,2532.0,3.94944]
[1729765899014,0.02747283,2532.4,2531.8,4.73987]
[1729765899015,3.94897,2532.3,2531.8,4.73987]
[1729765899197,3.97631283,2532.4,2531.9,3.94959]
[1729765900412,0.02747283,2532.4,2531.9,3.94959]
[1729765900601,0.02747283,2532.4,2532.1,0.8155]
[1729765900805,0.02747283,2532.6,2532.1,0.8155]
[1729765901103,0.005,2533.3,2532.1,0.8155]
[1729765901104,0.005,2533.3,2533.1,4.76323]
[1729765901311,0.005,2533.3,2533.1,4.3655]
[1729765901478,0.005,2533.3,2533.1,0.8155]
[1729765901677,0.005,2533.3,2533.0,4.07]
[1729765901877,0.005,2533.3,2533.0,8.01786]
[1729765902075,0.005,2533.3,2533.0,4.07]
[1729765902478,0.005,2533.3,2533.1,1.40185438]
[1729765902708,0.005,2533.3,2533.0,4.07]
[1729765904521,0.005,2533.3,2533.1,0.1308679]
[1729765905379,0.005,2533.3,2533.1,4.0785979]
[1729765905710,0.005,2533.3,2533.1,0.1308679]
[1729765906322,0.03247283,2533.3,2533.1,0.1308679]
[1729765908415,0.03247283,2533.3,2533.1,4.0785979]
[1729765908577,0.005,2533.3,2533.1,0.1308679]
[1729765909017,0.03027283,2533.2,2533.1,0.1308679]
[1729765912117,0.0028,2533.2,2533.1,0.1308679]
[1729765919201,0.0028,2533.2,2533.1,4.0785979]
[1729765919842,0.0028,2533.2,2533.1,0.1308679]
[1729765921135,0.0028,2533.2,2533.1,4.0785979]
[1729765921514,0.0028,2533.2,2533.1,0.1308679]
[1729765921836,0.0028,2533.2,2533.1,4.0785979]
[1729765922139,0.0028,2533.2,2533.1,4.07753615]